bitfinex/quotes_BTCUSD_20221001
["timestamp","ask_amount","ask_price","bid_price","bid_amount"]
[1664588712104,0.01295851,19400.0,19399.0,1.81746734]
[1664588712318,0.01295851,19400.0,19399.0,2.17554896]
[1664588712562,0.01295851,19400.0,19399.0,2.12554896]
[1664588712981,0.05333254,19400.0,19399.0,2.12554896]
[1664588713155,0.00295851,19400.0,19399.0,2.05354896]
[1664588713366,0.36052951,19400.0,19399.0,1.74546734]
[1664588713701,0.00295851,19400.0,19399.0,1.74546734]
[1664588713920,0.05533254,19400.0,19399.0,1.81846734]
[1664588714187,0.01495851,19400.0,19399.0,1.81846734]
[1664588714631,0.41290354,19400.0,19399.0,1.81846734]
[1664588714846,0.05533254,19400.0,19399.0,1.81846734]
[1664588715313,0.04333254,19400.0,19399.0,1.74546734]
[1664588715483,0.00295851,19400.0,19399.0,1.74546734]
[1664588715765,0.04333254,19400.0,19399.0,1.74546734]
[1664588716379,0.05533254,19400.0,19399.0,1.81846734]
[1664588716822,0.05533254,19400.0,19399.0,1.30297734]
[1664588717478,0.04333254,19400.0,19399.0,1.22997734]
[1664588718098,0.01495851,19400.0,19399.0,1.81846734]
[1664588718457,0.05533254,19400.0,19399.0,1.8183667]
[1664588718762,0.47346407,19400.0,19399.0,1.8183667]
[1664588719234,0.11589307,19400.0,19399.0,1.8183667]
[1664588719442,0.10389307,19400.0,19399.0,1.7453667]
[1664588719591,0.10389307,19400.0,19399.0,1.2298767]
[1664588719822,0.49947344,19400.0,19399.0,0.8432597]
[1664588720029,0.82761102,19400.0,19399.0,0.9162597]
[1664588720269,0.78729761,19400.0,19399.0,0.9162597]
[1664588720485,0.42972759,19400.0,19399.0,0.9162597]
[1664588720663,0.37152789,19400.0,19399.0,0.9162597]
[1664588721100,0.72909889,19400.0,19399.0,0.9162597]
[1664588721267,0.71709889,19400.0,19399.0,0.8432597]
[1664588721481,1.00516081,19400.0,19399.0,0.8432597]
[1664588722130,1.01716081,19400.0,19399.0,0.9152597]
[1664588722577,0.93641658,19400.0,19399.0,0.9152597]
[1664588722802,0.93650014,19400.0,19399.0,0.9152597]
[1664588723233,0.84290811,19400.0,19399.0,0.9152597]
[1664588723450,1.21750411,19400.0,19399.0,0.8432597]
[1664588724043,1.22250411,19400.0,19399.0,0.9042597]
[1664588725435,1.21750411,19400.0,19399.0,0.8432597]
[1664588726096,1.22250411,19400.0,19399.0,0.9042597]
[1664588727603,1.21750411,19400.0,19399.0,0.8432597]
[1664588728310,1.86923322,19400.0,19399.0,0.8432597]
[1664588728523,1.76823555,19400.0,19399.0,0.8432597]
[1664588728639,1.61149852,19400.0,19399.0,0.8432597]
[1664588728872,1.48263352,19400.0,19399.0,0.8432597]
[1664588729087,1.56342899,19400.0,19399.0,0.8432597]
[1664588729310,1.52442899,19400.0,19399.0,0.8432597]
[1664588729788,0.72455497,19400.0,19399.0,0.8432597]
[1664588730003,0.36698397,19400.0,19399.0,0.8432597]
[1664588730226,0.10695836,19400.0,19399.0,0.8952597]
[1664588730445,0.10695836,19400.0,19399.0,1.0165454]
[1664588730446,0.04635851,19400.0,19399.0,1.0165454]
[1664588730786,0.0434,19400.0,19399.0,1.9186524]
[1664588731444,0.0404,19400.0,19399.0,1.8666524]
[1664588732104,0.0504,19400.0,19399.0,1.9376524]
[1664588732736,0.11099985,19400.0,19399.0,1.9376524]
[1664588733331,0.0504,19400.0,19399.0,1.9376524]
[1664588733587,0.0404,19400.0,19399.0,1.8666524]
[1664588734226,0.0474,19400.0,19399.0,1.9346524]
[1664588734679,0.0474,19400.0,19399.0,1.8133667]
[1664588734888,0.10799985,19400.0,19399.0,1.8133667]
[1664588735015,0.0474,19400.0,19399.0,1.8133667]
[1664588735453,0.0404,19400.0,19399.0,1.7453667]
[1664588736100,0.0474,19400.0,19399.0,1.8133667]
[1664588736306,0.10799985,19400.0,19399.0,1.8133667]
[1664588737461,0.10099985,19400.0,19399.0,1.7453667]
[1664588737784,0.10099985,19400.0,19399.0,1.74606574]
[1664588738005,0.45857085,19400.0,19399.0,1.74606574]
[1664588738225,0.46557085,19400.0,19399.0,1.81406574]
[1664588738444,0.10799985,19400.0,19399.0,1.81406574]
[1664588739488,0.45857085,19400.0,19399.0,1.74606574]
[1664588739817,0.10099985,19400.0,19399.0,1.74606574]
[1664588740190,0.10799985,19400.0,19399.0,1.81406574]
[1664588740696,0.0474,19400.0,19399.0,1.81406574]
[1664588740874,0.10799985,19400.0,19399.0,1.81406574]
[1664588741092,0.0474,19400.0,19399.0,1.81406574]
[1664588741310,0.05035851,19400.0,19399.0,2.02622737]
[1664588741521,0.04335851,19400.0,19399.0,1.44273737]
[1664588742243,0.05035851,19400.0,19399.0,1.29857574]
[1664588742874,0.11095836,19400.0,19399.0,1.29857574]
[1664588743055,0.05035851,19400.0,19399.0,1.29851179]
[1664588743280,0.11095836,19400.0,19399.0,1.29851179]
[1664588743503,0.10395836,19400.0,19399.0,1.23051179]
[1664588744166,0.05035851,19400.0,19399.0,1.29851179]
[1664588744848,0.40792951,19400.0,19399.0,1.29851179]
[1664588745052,0.05035851,19400.0,19399.0,1.29851179]
[1664588745257,0.46852936,19400.0,19399.0,1.29851179]
[1664588745468,0.06355836,19400.0,19399.0,1.23051179]
[1664588745843,0.10397268,19400.0,19399.0,1.23051179]
[1664588746297,0.11097268,19400.0,19399.0,1.29851179]
[1664588747490,0.10397268,19400.0,19399.0,1.23051179]
[1664588748307,0.11097268,19400.0,19399.0,1.29851179]
[1664588749393,0.10397268,19400.0,19399.0,1.23051179]
[1664588749857,0.04337283,19400.0,19399.0,1.23051179]
[1664588750297,0.05037283,19400.0,19399.0,1.29851179]
[1664588750508,0.05027197,19400.0,19399.0,1.29851179]
[1664588750721,0.11087182,19400.0,19399.0,1.29851179]
[1664588750935,0.05027197,19400.0,19399.0,1.29851179]
[1664588751448,0.04327197,19400.0,19399.0,1.23051179]
[1664588752228,0.04327197,19400.0,19399.0,1.29851179]
[1664588752440,0.05027197,19400.0,19399.0,1.29851179]
[1664588753407,0.10387182,19400.0,19399.0,1.23051179]
[1664588753629,0.04327197,19400.0,19399.0,1.74600179]
[1664588753983,0.04327197,19400.0,19399.0,1.95659848]
[1664588754199,0.05027197,19400.0,19399.0,2.02459848]
[1664588754421,0.4280285,19400.0,19399.0,1.81400179]
[1664588754640,0.46844645,19400.0,19399.0,1.81400179]
[1664588754855,0.508825,19400.0,19399.0,1.81400179]
[1664588755157,0.46844661,19400.0,19399.0,1.81400179]
[1664588755331,0.0704575,19400.0,19399.0,1.81400179]
[1664588755512,0.144254,19400.0,19399.0,1.74600179]
[1664588755704,0.0634575,19400.0,19399.0,1.74600179]
[1664588756180,0.10387464,19400.0,19399.0,1.81400179]
[1664588756410,0.11087337,19400.0,19399.0,1.81400179]
[1664588757281,0.0704575,19400.0,19399.0,1.81400179]
[1664588757496,0.501825,19400.0,19399.0,1.74600179]
[1664588757695,0.144254,19400.0,19399.0,1.74600179]
[1664588757867,0.10387442,19400.0,19399.0,1.74600179]
[1664588758294,0.151254,19400.0,19399.0,1.81400179]
[1664588758685,0.11087469,19400.0,19399.0,1.81400179]
[1664588759599,0.144254,19400.0,19399.0,1.74600179]
[1664588759868,0.0634575,19400.0,19399.0,1.74600179]
[1664588759967,0.144254,19400.0,19399.0,1.74600179]
[1664588760177,0.11087623,19400.0,19399.0,1.81400179]
[1664588760621,0.0704575,19400.0,19399.0,1.81400179]
[1664588760960,0.46844609,19400.0,19399.0,1.81400179]
[1664588761167,0.0704575,19400.0,19399.0,1.81400179]
[1664588761464,0.151254,19400.0,19399.0,1.81400179]
[1664588761680,0.10387498,19400.0,19399.0,1.74600179]
[1664588761901,0.144254,19400.0,19399.0,1.74600179]
[1664588762122,0.10387579,19400.0,19399.0,1.74600179]
[1664588762316,0.0704575,19400.0,19399.0,1.81400179]
[1664588762818,0.151254,19400.0,19399.0,1.81400179]
[1664588763285,0.0704575,19400.0,19399.0,1.81400179]
[1664588763547,0.0634575,19400.0,19399.0,1.74600179]
[1664588763777,0.144254,19400.0,19399.0,1.74600179]
[1664588763985,0.0634575,19400.0,19399.0,1.74600179]
[1664588764196,0.10387362,19400.0,19399.0,1.74600179]
[1664588764426,0.151254,19400.0,19399.0,1.81400179]
[1664588765279,0.11087349,19400.0,19399.0,1.81400179]
[1664588765418,0.0634575,19400.0,19399.0,1.74600179]
[1664588765627,0.10387384,19400.0,19399.0,1.74600179]
[1664588766352,0.11087384,19400.0,19399.0,1.81400179]
[1664588766804,0.4280285,19400.0,19399.0,1.81400179]
[1664588767015,0.151254,19400.0,19399.0,1.81400179]
[1664588767148,0.0704575,19400.0,19399.0,1.81400179]
[1664588767368,0.4280285,19400.0,19399.0,1.81400179]
[1664588767587,0.0704575,19400.0,19399.0,1.81400179]
[1664588767800,0.0634575,19400.0,19399.0,1.74600179]
[1664588768234,0.0704575,19400.0,19399.0,1.81400179]
[1664588768943,0.151254,19400.0,19399.0,1.81400179]
[1664588769580,0.10387522,19400.0,19399.0,1.74600179]
[1664588770230,0.11087522,19400.0,19399.0,1.81400179]
[1664588770664,0.15129931,19400.0,19399.0,1.81400179]
[1664588770903,0.11093428,19400.0,19399.0,2.03139848]
[1664588771357,0.07050281,19400.0,19399.0,2.03139848]
[1664588771563,0.10393285,19400.0,19399.0,1.74600179]
[1664588771735,0.06350281,19400.0,19399.0,1.74600179]
[1664588772187,0.10393302,19400.0,19399.0,1.81400179]
[1664588772395,0.11093302,19400.0,19399.0,1.81400179]
[1664588772843,0.07050281,19400.0,19399.0,1.81400179]
[1664588773724,0.06350281,19400.0,19399.0,1.74592362]
[1664588774176,0.1109356,19400.0,19399.0,1.81392362]
[1664588774404,0.15129931,19400.0,19399.0,1.81392362]
[1664588774632,0.50887031,19400.0,19399.0,1.81392362]
[1664588774853,0.15129931,19400.0,19399.0,1.81392362]
[1664588775366,0.07050281,19400.0,19399.0,1.81392362]
[1664588775672,0.06350281,19400.0,19399.0,1.74592362]
[1664588776259,0.07050281,19400.0,19399.0,1.81392362]
[1664588776705,0.15129931,19400.0,19399.0,1.81392362]
[1664588777307,0.15129931,19400.0,19399.0,1.29843362]
[1664588777308,0.44822515,19400.0,19399.0,1.29843362]
[1664588777516,0.44122515,19400.0,19399.0,1.23043362]
[1664588777751,0.18464812,19400.0,19399.0,1.23043362]
[1664588778207,0.19264812,19400.0,19399.0,1.29843362]
[1664588778451,0.09165415,19400.0,19399.0,1.29843362]
[1664588778843,0.15230273,19400.0,19399.0,1.29843362]
[1664588779630,0.14430273,19400.0,19399.0,1.23043362]
[1664588780381,0.15130273,19400.0,19399.0,1.29843362]
[1664588781788,0.14430273,19400.0,19399.0,1.23043362]
[1664588782361,0.15130273,19400.0,19399.0,1.29843362]
[1664588783733,0.14430273,19400.0,19399.0,1.23043362]
[1664588783962,0.10393969,19400.0,19399.0,1.74592362]
[1664588784325,0.11593969,19400.0,19399.0,1.81892362]
[1664588784555,0.05529111,19400.0,19399.0,1.92218362]
[1664588785753,0.46151069,19400.0,19399.0,1.79918362]
[1664588785884,0.04329111,19400.0,19399.0,1.79918362]
[1664588786405,0.05529111,19400.0,19399.0,1.87218362]
[1664588786621,0.11593969,19400.0,19399.0,1.87218362]
[1664588787695,0.10393969,19400.0,19399.0,1.79918362]
[1664588788370,0.11593969,19400.0,19399.0,1.87218362]
[1664588789662,0.10393969,19400.0,19399.0,1.79918362]
[1664588790313,0.11593969,19400.0,19399.0,1.87218362]
[1664588791635,0.10393969,19400.0,19399.0,1.79918362]
[1664588792083,0.04328348,19400.0,19399.0,2.67525236]
[1664588792314,0.00285765,19400.0,19399.0,2.67525236]
[1664588792535,0.02685765,19400.0,19399.0,2.75225236]
[1664588792753,0.02685765,19400.0,19399.0,3.18750084]
[1664588793534,0.00285765,19400.0,19399.0,3.11050084]
[1664588794464,0.02685765,19400.0,19399.0,3.18750084]
[1664588794654,0.02685765,19400.0,19399.0,2.86990354]
[1664588794862,0.02685765,19400.0,19399.0,3.18750084]
[1664588795763,0.00285765,19400.0,19399.0,3.11050084]
[1664588795982,0.00285765,19400.0,19399.0,2.74290354]
[1664588796351,0.00285765,19400.0,19399.0,2.79290354]
[1664588796569,0.02885765,19400.0,19399.0,2.86990354]
[1664588797572,0.00285765,19400.0,19399.0,2.79290354]
[1664588798455,0.02885765,19400.0,19399.0,2.86990354]
[1664588799525,0.02885765,19400.0,19399.0,2.74290354]
[1664588799761,0.00285765,19400.0,19399.0,2.74290354]
[1664588799938,0.00285765,19400.0,19399.0,2.30765506]
[1664588800358,0.02885765,19400.0,19399.0,2.38465506]
[1664588800547,0.00385765,19400.0,19399.0,2.43465506]
[1664588800759,0.00385765,19400.0,19399.0,2.38465506]
[1664588800996,0.00385765,19400.0,19399.0,2.43465506]
[1664588801231,0.00385765,19400.0,19399.0,2.80433758]
[1664588801653,0.128769,19401.0,19399.0,2.67733758]
[1664588801866,0.128769,19401.0,19399.0,3.06329413]
[1664588802080,0.128769,19401.0,19400.0,0.05395904]
[1664588803061,0.128769,19401.0,19400.0,0.56569048]
[1664588803280,0.128769,19401.0,19400.0,0.61569048]
[1664588803477,0.128769,19401.0,19400.0,0.86442435]
[1664588803696,0.128769,19401.0,19400.0,0.91442435]
[1664588803927,0.128769,19401.0,19400.0,0.96442435]
[1664588804058,0.001,19402.0,19400.0,0.96442435]
[1664588804265,0.001,19402.0,19401.0,0.04389653]
[1664588804509,0.001,19402.0,19401.0,1.01217237]
[1664588806479,0.027,19402.0,19401.0,1.08917237]
[1664588807767,0.001,19402.0,19401.0,1.01217237]
[1664588807991,0.001,19402.0,19401.0,0.94660957]
[1664588808454,0.03,19402.0,19401.0,1.02360957]
[1664588808889,0.03,19402.0,19401.0,1.07360957]
[1664588809786,0.001,19402.0,19401.0,0.99660957]
[1664588809907,0.001,19402.0,19401.0,0.94660957]
[1664588810352,0.03,19402.0,19401.0,1.02360957]
[1664588810568,0.06956991,19402.0,19401.0,1.02360957]
[1664588810777,0.03,19402.0,19401.0,1.02360957]
[1664588811504,0.03,19402.0,19401.0,0.97971304]
[1664588811736,0.001,19402.0,19401.0,0.90271304]
[1664588812392,0.03,19402.0,19401.0,0.97971304]
[1664588813452,0.03,19402.0,19401.0,2.16355916]
[1664588813677,0.001,19402.0,19401.0,1.66896186]
[1664588814511,0.032,19402.0,19401.0,1.74696186]
[1664588815782,0.001,19402.0,19401.0,1.66896186]
[1664588816388,0.032,19402.0,19401.0,1.74696186]
[1664588817023,0.39995308,19404.0,19403.0,0.04389653]
[1664588817024,0.13197096,19404.0,19403.0,0.04389653]
[1664588817275,0.48954196,19404.0,19403.0,0.128846]
[1664588817480,0.61829296,19404.0,19403.0,0.128846]
[1664588817699,0.61829296,19404.0,19402.0,0.128883]
[1664588817932,0.26072196,19404.0,19402.0,0.64061444]
[1664588818165,0.26072196,19404.0,19402.0,1.02716044]
[1664588818401,0.17992546,19404.0,19402.0,1.69682268]
[1664588818631,0.17992546,19404.0,19402.0,1.77482268]
[1664588818855,0.17992546,19404.0,19403.0,0.00069904]
[1664588819295,0.128751,19404.0,19403.0,0.00069904]
[1664588820416,0.128751,19404.0,19403.0,0.07869904]
[1664588820869,0.5671185,19404.0,19403.0,0.07869904]
[1664588821844,0.2095475,19404.0,19403.0,0.07869904]
[1664588821991,0.2095475,19404.0,19403.0,0.00069904]
[1664588822384,0.2095475,19404.0,19403.0,0.07869904]
[1664588822594,0.128751,19404.0,19403.0,0.07869904]
[1664588822828,0.5671185,19404.0,19403.0,0.10143932]
[1664588823062,0.2095475,19404.0,19403.0,0.10143932]
[1664588823507,0.128751,19404.0,19403.0,0.10143932]
[1664588823754,0.2095475,19404.0,19403.0,0.10143932]
[1664588823961,0.2095475,19404.0,19403.0,0.02343932]
[1664588824400,0.128751,19404.0,19403.0,0.10143932]
[1664588824875,0.2095475,19404.0,19403.0,0.10143932]
[1664588825085,0.128751,19404.0,19403.0,0.10143932]
[1664588825866,0.2095475,19404.0,19403.0,0.02343932]
[1664588826059,0.27016448,19404.0,19403.0,0.02343932]
[1664588826271,0.18936798,19404.0,19403.0,0.02343932]
[1664588826482,0.27016448,19404.0,19403.0,0.10143932]
[1664588826713,0.18936798,19404.0,19403.0,0.10143932]
[1664588826932,0.27016448,19404.0,19403.0,0.10143932]
[1664588827388,0.18936798,19404.0,19403.0,0.10143932]
[1664588827823,0.27016448,19404.0,19403.0,0.02343932]
[1664588828509,0.27016448,19404.0,19403.0,0.10143932]
[1664588829434,0.22977907,19404.0,19403.0,0.10143932]
[1664588830024,0.22977907,19404.0,19403.0,0.02343932]
[1664588830246,0.27016448,19404.0,19403.0,0.02343932]
[1664588830461,0.22978081,19404.0,19403.0,0.02343932]
[1664588830688,0.18936798,19404.0,19403.0,0.10143932]
[1664588830905,0.2297813,19404.0,19403.0,0.10143932]
[1664588831129,0.27016448,19404.0,19403.0,0.10143932]
[1664588831589,0.2297811,19404.0,19403.0,0.10143932]
[1664588831805,0.2297811,19404.0,19403.0,0.02343932]
[1664588832719,0.2297811,19404.0,19403.0,0.10143932]
[1664588833831,0.2297811,19404.0,19403.0,0.02343932]
[1664588834063,0.27016448,19404.0,19403.0,0.02343932]
[1664588834461,0.27016448,19404.0,19403.0,0.10143932]
[1664588835461,0.62773548,19404.0,19403.0,0.10143932]
[1664588835832,0.2095475,19404.0,19403.0,0.10143932]
[1664588835982,0.2095475,19404.0,19403.0,0.02343932]
[1664588835983,0.1893826,19404.0,19403.0,0.02343932]
[1664588836374,0.2701791,19404.0,19403.0,0.02343932]
[1664588836626,0.55710962,19404.0,19403.0,0.10143932]
[1664588836859,0.27017943,19404.0,19403.0,0.10135882]
[1664588837297,0.27018007,19404.0,19403.0,0.10135882]
[1664588837518,0.31054147,19404.0,19403.0,0.10135882]
[1664588837728,0.55710487,19404.0,19403.0,0.02335882]
[1664588838002,0.2095475,19404.0,19403.0,0.02335882]
[1664588838254,0.91467618,19404.0,19403.0,0.02335882]
[1664588838478,0.27018018,19404.0,19403.0,0.02335882]
[1664588838693,0.66811247,19404.0,19403.0,0.10135882]
[1664588838910,0.31054147,19404.0,19403.0,0.10135882]
[1664588839186,0.2701798,19404.0,19403.0,0.10135882]
[1664588839406,0.55710468,19404.0,19403.0,0.10135882]
[1664588839627,0.27017979,19404.0,19403.0,0.10135882]
[1664588839867,0.27017979,19404.0,19403.0,0.02335882]
[1664588840308,0.22980345,19404.0,19403.0,0.17995155]
[1664588840533,0.22980345,19404.0,19403.0,0.25795155]
[1664588840966,0.10105245,19404.0,19403.0,0.25795155]
[1664588841194,0.10105245,19404.0,19403.0,0.64448955]
[1664588841403,0.10105245,19404.0,19403.0,0.48789682]
[1664588841851,0.06063229,19404.0,19403.0,0.40989682]
[1664588842070,0.14142879,19404.0,19403.0,0.40989682]
[1664588842743,0.14142879,19404.0,19403.0,0.48789682]
[1664588843898,0.14142879,19404.0,19403.0,0.40989682]
[1664588844613,0.14142879,19404.0,19403.0,0.48789682]
[1664588844850,0.14142879,19404.0,19403.0,1.00328082]
[1664588845401,0.14142879,19404.0,19403.0,0.48789682]
[1664588845968,0.78569634,19404.0,19403.0,0.40989682]
[1664588846336,0.14142797,19404.0,19403.0,0.40989682]
[1664588846551,0.06063147,19404.0,19403.0,0.48789682]
[1664588847026,0.1010521,19404.0,19403.0,0.48789682]
[1664588847261,0.10105197,19404.0,19403.0,0.48789682]
[1664588847872,0.14142797,19404.0,19403.0,0.40989682]
[1664588848537,0.10105396,19404.0,19403.0,1.00328082]
[1664588848778,0.14142797,19404.0,19403.0,1.00328082]
[1664588849005,0.06063147,19404.0,19403.0,1.00328082]
[1664588849434,0.10105395,19404.0,19403.0,1.00328082]
[1664588849927,0.10105395,19404.0,19403.0,1.14120925]
[1664588850370,0.10105395,19404.0,19403.0,0.92528082]
[1664588850584,0.14142797,19404.0,19403.0,1.00328082]
[1664588850781,0.06063147,19404.0,19403.0,1.00328082]
[1664588850998,0.14142797,19404.0,19403.0,1.00328082]
[1664588851221,0.10105211,19404.0,19403.0,1.00328082]
[1664588852003,0.10105233,19404.0,19403.0,0.92528082]
[1664588852196,0.06063147,19404.0,19403.0,0.92528082]
[1664588852425,0.10105251,19404.0,19403.0,0.92528082]
[1664588852599,0.10105251,19404.0,19403.0,1.00328082]
[1664588853494,0.04042104,19404.0,19403.0,1.13699803]
[1664588853958,0.04042104,19404.0,19403.0,1.00899803]
[1664588854683,0.04042104,19404.0,19403.0,1.13699803]
[1664588854903,0.04042104,19404.0,19403.0,1.18699803]
[1664588855081,0.04042104,19404.0,19403.0,1.13699803]
[1664588855521,0.04042104,19404.0,19403.0,1.08699803]
[1664588855778,0.04042104,19404.0,19403.0,1.18699803]
[1664588855990,0.04042104,19404.0,19403.0,1.05899803]
[1664588856143,0.04042104,19404.0,19403.0,0.92528082]
[1664588856577,0.04042104,19404.0,19403.0,1.05328082]
[1664588857022,0.04042104,19404.0,19403.0,1.00328082]
[1664588857918,0.06063147,19404.0,19403.0,0.92528082]
[1664588858188,0.14142797,19404.0,19403.0,0.92528082]
[1664588858612,0.14142797,19404.0,19403.0,1.00328082]
[1664588859300,0.06063147,19404.0,19403.0,1.00328082]
[1664588859551,0.49899897,19404.0,19403.0,1.003191]
[1664588859950,0.49899982,19404.0,19403.0,0.925191]
[1664588860185,0.14142882,19404.0,19403.0,0.925191]
[1664588860417,0.55144932,19404.0,19403.0,0.409807]
[1664588860634,0.55144932,19404.0,19403.0,0.101269]
[1664588860635,0.80956549,19404.0,19403.0,0.101269]
[1664588861960,0.80956549,19404.0,19403.0,0.023269]
[1664588862641,0.80956549,19404.0,19403.0,0.101269]
[1664588863958,0.80956549,19404.0,19403.0,0.023269]
[1664588864632,0.80956549,19404.0,19403.0,0.101269]
[1664588865405,0.9106079,19404.0,19403.0,0.101269]
[1664588865845,0.9106079,19404.0,19403.0,0.023269]
[1664588866068,0.80956549,19404.0,19403.0,0.023269]
[1664588866690,0.80956549,19404.0,19403.0,0.101269]
[1664588867177,0.94580449,19404.0,19403.0,0.101269]
[1664588868070,0.94580449,19404.0,19403.0,0.023269]
[1664588868745,0.94580449,19404.0,19403.0,0.101269]
[1664588869187,1.04683295,19404.0,19403.0,0.101269]
[1664588869410,0.94580449,19404.0,19403.0,0.101269]
[1664588869874,0.94580449,19404.0,19403.0,0.023269]
[1664588870775,0.94580449,19404.0,19403.0,0.101269]
[1664588871775,1.04680715,19404.0,19403.0,0.101269]
[1664588871905,0.68923615,19404.0,19403.0,0.023269]
[1664588872123,1.04680715,19404.0,19403.0,0.023269]
[1664588872780,1.04680715,19404.0,19403.0,0.101269]
[1664588873111,0.94580449,19404.0,19403.0,0.101269]
[1664588873701,1.04676333,19404.0,19403.0,0.101269]
[1664588873854,1.04676333,19404.0,19403.0,0.023269]
[1664588874558,0.99869696,19404.0,19403.0,0.023269]
[1664588874749,0.99869696,19404.0,19403.0,0.101269]
[1664588874964,0.91792433,19404.0,19403.0,0.101269]
[1664588875965,0.91792433,19404.0,19403.0,0.023269]
[1664588876163,1.12754753,19404.0,19403.0,0.023269]
[1664588876609,1.04676333,19404.0,19403.0,0.023269]
[1664588876790,1.04676333,19404.0,19403.0,0.101269]
[1664588877015,1.12754821,19404.0,19403.0,0.101269]
[1664588877312,1.04676333,19404.0,19403.0,0.101269]
[1664588877507,1.12754649,19404.0,19403.0,0.101269]
[1664588878087,1.12754649,19404.0,19403.0,0.023269]
[1664588878575,1.12755178,19404.0,19403.0,0.023269]
[1664588878800,0.26577839,19404.0,19403.0,0.101269]
[1664588879025,0.30617699,19404.0,19403.0,0.101269]
[1664588880089,0.10099582,19404.0,19403.0,1.44704934]
[1664588880288,0.001,19405.0,19403.0,2.72775943]
[1664588880524,0.001,19405.0,19404.0,1.47986287]
[1664588880664,0.001,19405.0,19404.0,1.48039159]
[1664588881117,0.001,19405.0,19404.0,1.1424756]
[1664588882420,0.001,19405.0,19404.0,1.7424756]
[1664588882632,0.001,19405.0,19404.0,1.8014756]
[1664588883519,0.00092072,19405.0,19404.0,1.8014756]
[1664588883959,0.00092072,19405.0,19404.0,1.7424756]
[1664588884688,0.00092072,19405.0,19404.0,1.1424756]
[1664588884903,0.00092072,19405.0,19404.0,1.2014756]
[1664588885122,0.00092072,19405.0,19404.0,3.61403059]
[1664588885470,0.00092072,19405.0,19404.0,1.8014756]
[1664588885955,0.00092072,19405.0,19404.0,1.7424756]
[1664588886110,0.00092072,19405.0,19404.0,1.1424756]
[1664588886334,0.00092072,19405.0,19404.0,1.7424756]
[1664588886836,0.00092072,19405.0,19404.0,1.8214756]
[1664588887483,0.00092072,19405.0,19404.0,1.2214756]
[1664588887716,0.00092072,19405.0,19404.0,0.90691994]
[1664588887937,0.00092072,19405.0,19404.0,1.2214756]
[1664588888125,0.00092072,19405.0,19404.0,1.1424756]
[1664588888504,0.00092072,19405.0,19404.0,0.78402341]
[1664588888754,0.00092072,19405.0,19404.0,0.59126016]
[1664588890083,0.00092072,19405.0,19404.0,0.51226016]
[1664588890986,0.00092072,19405.0,19404.0,0.59126016]
[1664588891427,0.31547638,19405.0,19404.0,0.59126016]
[1664588891897,0.31547638,19405.0,19404.0,0.07952872]
[1664588892502,0.00092072,19405.0,19404.0,0.07952872]
[1664588892772,0.31547638,19405.0,19404.0,0.11952872]
[1664588892954,0.00092072,19405.0,19404.0,0.11952872]
[1664588893159,0.31547638,19405.0,19404.0,0.11952872]
[1664588893377,0.00092072,19405.0,19404.0,0.11952872]
[1664588894021,0.00092072,19405.0,19404.0,0.00052872]
[1664588894829,0.00092072,19405.0,19404.0,0.04152872]
[1664588896094,0.00092072,19405.0,19404.0,0.00052872]
[1664588896737,0.00092072,19405.0,19404.0,0.04852872]
[1664588898790,0.00092072,19405.0,19404.0,0.00052872]
[1664588898984,0.00092072,19405.0,19404.0,0.04852872]
[1664588899555,0.00092072,19405.0,19404.0,0.071269]
[1664588900265,0.00092072,19405.0,19404.0,0.023269]
[1664588900965,0.00092072,19405.0,19404.0,0.064269]
[1664588902171,0.31547638,19405.0,19404.0,0.023269]
[1664588902392,0.00092072,19405.0,19404.0,0.023269]
[1664588902857,0.31547638,19405.0,19404.0,0.064269]
[1664588903320,0.00092072,19405.0,19404.0,0.064269]
[1664588903533,0.31547638,19405.0,19404.0,0.064269]
[1664588904210,0.31547638,19405.0,19404.0,0.023269]
[1664588904873,0.67304738,19405.0,19404.0,0.064269]
[1664588905110,0.31547638,19405.0,19404.0,0.06418727]
[1664588906221,0.31547638,19405.0,19404.0,0.02318727]
[1664588906452,0.00092072,19405.0,19404.0,0.02318727]
[1664588906888,0.35849172,19405.0,19404.0,0.06418727]
[1664588907351,0.00092072,19405.0,19404.0,0.06418727]
[1664588908109,0.00092072,19405.0,19404.0,0.02318727]
[1664588909061,0.31547638,19405.0,19404.0,0.06418727]
[1664588909281,0.67304738,19405.0,19404.0,0.06418727]
[1664588909501,0.88506874,19405.0,19404.0,0.06418727]
[1664588909745,2.54203811,19405.0,19404.0,0.06418727]
[1664588909980,0.10610347,19400.0,19399.0,0.8203773]
[1664588910232,0.20483933,19400.0,19399.0,0.8203773]
[1664588910464,0.51823513,19402.0,19399.0,0.8203773]
[1664588910680,0.3133958,19401.0,19399.0,0.8203773]
[1664588910902,0.007,19400.0,19399.0,0.8893773]
[1664588912047,0.00692311,19400.0,19399.0,0.8893773]
[1664588912270,0.5709398,19401.0,19399.0,0.8203773]
[1664588912733,0.257544,19401.0,19399.0,0.8203773]
[1664588913001,0.257544,19401.0,19399.0,0.8893773]
[1664588913002,0.264544,19401.0,19399.0,0.8893773]
[1664588914113,0.257544,19401.0,19399.0,0.8203773]
[1664588914466,0.31463798,19401.0,19399.0,0.8203773]
[1664588914709,0.10610347,19400.0,19399.0,0.8203773]
[1664588914919,0.10610347,19400.0,19399.0,0.8893773]
[1664588915131,0.45040998,19401.0,19399.0,0.8893773]
[1664588915441,0.32163798,19401.0,19399.0,0.8893773]
[1664588915675,0.63503378,19401.0,19399.0,0.8893773]
[1664588916083,0.31463798,19401.0,19399.0,0.8203773]
[1664588916258,0.62803378,19401.0,19399.0,0.8203773]
[1664588916502,0.10610347,19400.0,19399.0,0.8203773]
[1664588916913,0.10610347,19400.0,19399.0,0.8763773]
[1664588917642,0.44640998,19401.0,19399.0,0.8763773]
[1664588917841,0.75980578,19401.0,19399.0,0.8763773]
[1664588918071,0.47253779,19400.0,19399.0,0.8203773]
[1664588918287,0.15914199,19400.0,19399.0,0.8203773]
[1664588918953,0.16614199,19400.0,19399.0,0.8893773]
[1664588919386,0.11310347,19400.0,19399.0,0.8893773]
[1664588920541,0.10610347,19400.0,19399.0,0.8203773]
[1664588920983,0.006,19400.0,19399.0,0.8883773]
[1664588922219,0.60366242,19401.0,19399.0,0.8203773]
[1664588922443,0.51414938,19401.0,19399.0,0.8203773]
[1664588922862,0.52014938,19401.0,19399.0,0.8883773]
[1664588923358,0.10610347,19400.0,19399.0,0.8883773]
[1664588924066,0.64892138,19401.0,19399.0,0.8883773]
[1664588924276,0.51414938,19401.0,19399.0,0.8203773]
[1664588924908,0.52014938,19401.0,19399.0,0.8883773]
[1664588925279,0.52014938,19401.0,19399.0,1.0172493]
[1664588925485,0.30280296,19401.0,19399.0,2.01798463]
[1664588925694,0.30280296,19401.0,19399.0,1.11587763]
[1664588925910,0.30280296,19401.0,19400.0,0.27036427]
[1664588926211,0.29680296,19401.0,19400.0,0.27036427]
[1664588927011,0.29680296,19401.0,19400.0,0.36236427]
[1664588927012,0.29780296,19401.0,19400.0,0.36236427]